bitfinex-derivatives/quotes_BTCF0:USTF0_20250822
["timestamp","ask_amount","ask_price","bid_price","bid_amount"]
[1755896482106,0.98647863,117110.0,117100.0,0.08892941]
[1755896482404,1.38801032,117110.0,117100.0,0.09544941]
[1755896482823,0.10628302,117110.0,117100.0,0.8970511]
[1755896483006,0.97774302,117110.0,117100.0,0.8970511]
[1755896483203,0.05113302,117110.0,117100.0,0.8970511]
[1755896483401,0.01884302,117110.0,117100.0,1.2324538]
[1755896483599,0.83956,117130.0,117100.0,1.2324538]
[1755896483794,0.91969,117130.0,117120.0,0.79719169]
[1755896484000,0.95882,117130.0,117120.0,0.84222169]
[1755896484406,0.96742121,117130.0,117120.0,0.44069]
[1755896484707,0.96742121,117130.0,117120.0,0.84222169]
[1755896484708,0.95882,117130.0,117120.0,0.84222169]
[1755896485398,0.95958,117140.0,117130.0,0.05433]
[1755896485601,0.95958,117140.0,117130.0,0.84222169]
[1755896487008,0.96058,117140.0,117130.0,0.84222169]
[1755896487508,0.96158,117140.0,117130.0,0.84222169]
[1755896488296,0.96158,117140.0,117130.0,0.44069]
[1755896488507,0.96158,117140.0,117130.0,0.84222169]
[1755896489011,0.002,117140.0,117130.0,0.84222169]
[1755896489306,0.8418,117140.0,117130.0,0.84222169]
[1755896489708,0.86509,117140.0,117130.0,0.84222169]
[1755896490210,0.87487,117140.0,117130.0,0.84222169]
[1755896490405,0.06641,117140.0,117130.0,0.84222169]
[1755896490712,0.02529,117140.0,117130.0,1.09222169]
[1755896490910,0.002,117140.0,117130.0,1.09222169]
[1755896492506,0.002,117140.0,117130.0,0.69069]
[1755896492701,0.002,117140.0,117130.0,1.09222169]
[1755896492900,0.9103,117150.0,117130.0,1.09222169]
[1755896492901,0.03865,117150.0,117130.0,1.09222169]
[1755896493106,0.11983,117150.0,117140.0,0.83700169]
[1755896493307,0.11983,117150.0,117140.0,0.85580194]
[1755896494006,0.12083,117150.0,117140.0,0.45427025]
[1755896494208,0.12183,117150.0,117140.0,0.45427025]
[1755896494607,0.12083,117150.0,117140.0,0.45427025]
[1755896494808,0.12283,117150.0,117140.0,0.85580194]
[1755896495007,0.12383,117150.0,117140.0,0.45427025]
[1755896495208,0.12383,117150.0,117140.0,0.45046025]
[1755896495709,0.14227848,117150.0,117140.0,0.45046025]
[1755896496014,0.14227848,117150.0,117140.0,0.08966025]
[1755896496214,0.14227848,117150.0,117140.0,0.08356025]
[1755896496514,0.14227848,117150.0,117140.0,0.09347025]
[1755896496712,0.14227848,117150.0,117140.0,0.49500194]
[1755896497214,0.14227848,117150.0,117140.0,0.09347025]
[1755896498914,0.14227848,117150.0,117140.0,0.06914025]
[1755896499416,0.14227848,117150.0,117140.0,0.09347025]
[1755896499808,0.14227848,117150.0,117140.0,0.49500194]
[1755896501507,0.14227848,117150.0,117140.0,0.09347025]
[1755896501713,0.14227848,117150.0,117140.0,0.49500194]
[1755896502522,0.14227848,117150.0,117140.0,0.09347025]
[1755896502818,0.54381017,117150.0,117140.0,0.06914025]
[1755896503209,0.79381017,117150.0,117140.0,0.04459025]
[1755896503415,1.15461017,117150.0,117140.0,0.01880025]
[1755896503712,0.75307848,117150.0,117140.0,0.01880025]
[1755896503915,0.75307848,117150.0,117140.0,0.05450025]
[1755896504218,0.39227848,117150.0,117140.0,0.49500194]
[1755896504721,0.39227848,117150.0,117140.0,0.09347025]
[1755896508524,0.39227848,117150.0,117140.0,0.04459025]
[1755896508717,0.79381017,117150.0,117140.0,0.01880025]
[1755896508915,0.39227848,117150.0,117140.0,0.01880025]
[1755896509117,0.79381017,117150.0,117140.0,0.01880025]
[1755896509518,1.15461017,117150.0,117140.0,0.01880025]
[1755896512132,0.11983,117130.0,117120.0,0.44786]
[1755896512327,1.00043848,117130.0,117120.0,0.47047]
[1755896512626,1.00043848,117130.0,117120.0,0.87200169]
[1755896514027,1.00043848,117130.0,117120.0,0.87300169]
[1755896514619,1.00043848,117130.0,117120.0,0.47147]
[1755896514827,1.00043848,117130.0,117120.0,0.87300169]
[1755896515528,1.00043848,117130.0,117120.0,0.47147]
[1755896517516,1.00043848,117130.0,117120.0,0.42656]
[1755896517721,1.40197017,117130.0,117120.0,0.001]
[1755896520131,1.00043848,117130.0,117120.0,0.02418]
[1755896520432,1.00043848,117130.0,117120.0,0.001]
[1755896520730,1.76277017,117130.0,117120.0,0.001]
[1755896520931,2.01277017,117130.0,117120.0,0.001]
[1755896522027,2.01277017,117130.0,117100.0,0.41712941]
[1755896522225,0.10561,117090.0,117080.0,0.48924605]
[1755896522424,0.99924848,117090.0,117080.0,0.48924605]
[1755896523530,0.99924848,117090.0,117080.0,0.49424605]
[1755896523725,0.9808,117090.0,117080.0,0.49424605]
[1755896524329,0.9808,117090.0,117080.0,0.89577774]
[1755896525426,0.9818,117090.0,117080.0,0.89977774]
[1755896525828,0.89243,117090.0,117080.0,0.89977774]
[1755896526030,0.9508,117090.0,117080.0,0.89977774]
[1755896526233,0.9818,117090.0,117080.0,0.89977774]
[1755896526729,0.121,117090.0,117080.0,0.89977774]
[1755896527637,0.121,117090.0,117080.0,0.87616774]
[1755896527841,0.13946216,117090.0,117080.0,0.10017605]
[1755896528129,0.13946216,117090.0,117080.0,0.05347605]
[1755896528336,0.61053351,117090.0,117080.0,0.05347605]
[1755896528530,0.97133351,117090.0,117080.0,0.02814605]
[1755896528934,0.90179385,117090.0,117080.0,0.02814605]
[1755896529136,0.96874418,117090.0,117080.0,0.02814605]
[1755896530435,0.9774499,117090.0,117080.0,0.02814605]
[1755896530835,0.57591821,117090.0,117080.0,0.02814605]
[1755896531135,0.6166499,117090.0,117080.0,0.05132605]
[1755896531337,0.6166499,117090.0,117080.0,0.13744605]
[1755896531537,0.21511821,117090.0,117080.0,0.13744605]
[1755896533140,0.21511821,117090.0,117080.0,0.11383605]
[1755896533537,0.21511821,117090.0,117080.0,0.13744605]
[1755896537238,0.21494016,117090.0,117080.0,0.13744605]
[1755896537640,0.18034016,117090.0,117080.0,0.89977774]
[1755896537940,0.20623444,117090.0,117080.0,0.89977774]
[1755896538836,0.17163444,117090.0,117080.0,0.49824605]
[1755896539037,0.20623444,117090.0,117080.0,0.49824605]
[1755896539732,0.20623444,117090.0,117080.0,0.89977774]
[1755896540233,0.11686444,117090.0,117080.0,0.89977774]
[1755896540937,0.08623444,117090.0,117080.0,0.89977774]
[1755896541342,0.06795033,117090.0,117080.0,0.49824605]
[1755896541538,0.11687507,117090.0,117080.0,0.89977774]
[1755896541843,0.17524507,117090.0,117080.0,0.89977774]
[1755896543443,0.17524507,117090.0,117080.0,0.49824605]
[1755896543641,0.20624507,117090.0,117080.0,0.89977774]
[1755896544043,0.13929474,117090.0,117080.0,0.89977774]
[1755896545039,0.13929474,117090.0,117080.0,0.49824605]
[1755896545239,0.13929474,117090.0,117080.0,0.89977774]
[1755896548136,0.13929474,117090.0,117080.0,0.49824605]
[1755896548337,0.13929474,117090.0,117080.0,0.89977774]
[1755896549545,0.01929474,117090.0,117080.0,0.89977774]
[1755896551748,0.04166474,117090.0,117080.0,0.89977774]
[1755896552845,0.08392474,117090.0,117080.0,0.49824605]
[1755896553040,0.05096474,117090.0,117080.0,0.89977774]
[1755896553350,0.08392474,117090.0,117080.0,0.89977774]
[1755896554144,0.02859474,117090.0,117080.0,0.49824605]
[1755896554345,0.05096474,117090.0,117080.0,0.49824605]
[1755896554547,0.08392474,117090.0,117080.0,0.89977774]
[1755896554850,0.02859474,117090.0,117080.0,0.89977774]
[1755896555050,0.05096474,117090.0,117080.0,0.49824605]
[1755896555247,0.05096474,117090.0,117080.0,0.89977774]
[1755896555449,0.13867474,117090.0,117080.0,0.49824605]
[1755896555651,0.13867474,117090.0,117080.0,0.89977774]
[1755896556850,0.13867474,117090.0,117080.0,0.49824605]
[1755896557052,0.13867474,117090.0,117080.0,0.89977774]
[1755896557254,0.13867474,117090.0,117080.0,0.49824605]
[1755896557553,0.13867474,117090.0,117080.0,0.89977774]
[1755896559349,0.13867474,117090.0,117080.0,0.49824605]
[1755896559546,0.13867474,117090.0,117080.0,0.89977774]
[1755896561747,0.13867474,117090.0,117080.0,0.49824605]
[1755896561947,0.13867474,117090.0,117080.0,0.89977774]
[1755896562746,0.13867474,117090.0,117080.0,0.49824605]
[1755896562951,0.13867474,117090.0,117080.0,0.89977774]
[1755896563856,0.05096474,117090.0,117080.0,0.89977774]
[1755896564049,0.01929474,117090.0,117080.0,1.76249774]
[1755896564648,0.04166474,117090.0,117080.0,1.76249774]
[1755896564849,0.05096474,117090.0,117080.0,1.76249774]
[1755896565052,0.08392474,117090.0,117080.0,1.76249774]
[1755896565247,0.05096474,117090.0,117080.0,1.76249774]
[1755896565652,0.02859474,117090.0,117080.0,1.76249774]
[1755896565852,0.01929474,117090.0,117080.0,1.76249774]
[1755896566054,0.05096474,117090.0,117080.0,1.76249774]
[1755896566558,0.05096474,117090.0,117080.0,1.36096605]
[1755896566757,0.05096474,117090.0,117080.0,1.76249774]
[1755896567060,0.05096474,117090.0,117080.0,1.36096605]
[1755896567262,0.05096474,117090.0,117080.0,1.76249774]
[1755896568358,0.05096474,117090.0,117080.0,1.36096605]
[1755896568556,0.05096474,117090.0,117080.0,1.76249774]
[1755896569957,0.05096474,117090.0,117080.0,1.36096605]
[1755896570162,0.01929474,117090.0,117080.0,1.76249774]
[1755896570364,0.01929474,117090.0,117080.0,1.36096605]
[1755896570562,0.01929474,117090.0,117080.0,1.76249774]
[1755896571661,0.01929474,117090.0,117080.0,1.36096605]
[1755896571863,0.01929474,117090.0,117080.0,1.76249774]
[1755896574763,0.01929474,117090.0,117080.0,2.03159774]
[1755896574964,0.01929474,117090.0,117080.0,2.07765052]
[1755896578066,0.01929474,117090.0,117080.0,2.03159774]
[1755896578767,0.01906085,117090.0,117080.0,2.03159774]
[1755896579162,0.01906085,117090.0,117080.0,2.43312943]
[1755896579361,0.01906085,117090.0,117080.0,2.03159774]
[1755896580664,0.10037085,117090.0,117080.0,1.16887774]
[1755896580860,0.13875085,117090.0,117080.0,2.03187774]
[1755896582761,0.13875085,117090.0,117080.0,0.76734605]
[1755896582969,0.13875085,117090.0,117080.0,1.16887774]
[1755896583166,0.13875085,117090.0,117080.0,0.76734605]
[1755896583469,0.13875085,117090.0,117080.0,1.16887774]
[1755896583660,0.13875085,117090.0,117080.0,0.76734605]
[1755896583861,0.13875085,117090.0,117080.0,1.16887774]
[1755896584065,0.13875085,117090.0,117080.0,0.76734605]
[1755896584261,0.13875085,117090.0,117080.0,1.16887774]
[1755896586575,0.13875085,117090.0,117080.0,0.49824605]
[1755896586758,0.13875085,117090.0,117080.0,0.89977774]
[1755896588563,0.13875085,117090.0,117080.0,0.49824605]
[1755896588964,0.13875085,117090.0,117080.0,0.89977774]
[1755896589272,0.13875085,117090.0,117080.0,0.49824605]
[1755896589463,0.13875085,117090.0,117080.0,0.89977774]
[1755896590674,0.10538085,117090.0,117080.0,0.89977774]
[1755896590973,0.08402085,117090.0,117080.0,0.49824605]
[1755896591173,0.13875085,117090.0,117080.0,0.89977774]
[1755896591970,0.10538085,117090.0,117080.0,0.89977774]
[1755896592276,0.10538085,117090.0,117080.0,0.89943268]
[1755896592277,0.06700085,117090.0,117080.0,0.89943268]
[1755896593375,0.05065085,117090.0,117080.0,0.89943268]
[1755896595064,0.05065085,117090.0,117080.0,0.49790099]
[1755896595269,0.05065085,117090.0,117080.0,0.89943268]
[1755896596169,0.05065085,117090.0,117080.0,0.49790099]
[1755896596570,0.05065085,117090.0,117080.0,0.89943268]
[1755896597579,0.01906085,117090.0,117080.0,0.49790099]
[1755896597773,0.01906085,117090.0,117080.0,0.89943268]
[1755896598181,0.01906085,117090.0,117080.0,0.49790099]
[1755896598384,0.01906085,117090.0,117080.0,0.89943268]
[1755896599979,0.01906085,117090.0,117080.0,0.49790099]
[1755896600184,0.01906085,117090.0,117080.0,0.89943268]
[1755896600484,0.04154085,117090.0,117080.0,0.89943268]
[1755896600877,0.05065085,117090.0,117080.0,0.89943268]
[1755896601076,0.05065085,117090.0,117080.0,1.75895268]
[1755896602885,0.05065085,117090.0,117080.0,0.89943268]
[1755896604182,0.01906085,117090.0,117080.0,0.89943268]
[1755896604688,0.01906085,117090.0,117080.0,0.49790099]
[1755896604886,0.01906085,117090.0,117080.0,0.89943268]
[1755896605984,0.01906085,117090.0,117080.0,0.49790099]
[1755896606181,0.01906085,117090.0,117080.0,0.89943268]
[1755896608884,0.04089085,117090.0,117080.0,0.49790099]
[1755896609086,0.04089085,117090.0,117080.0,0.89943268]
[1755896610083,0.05084085,117090.0,117080.0,0.89943268]
[1755896613996,0.08348085,117090.0,117080.0,0.89943268]
[1755896614383,0.05084085,117090.0,117080.0,0.89943268]
[1755896614584,0.05084085,117090.0,117080.0,0.49790099]
[1755896614784,0.05084085,117090.0,117080.0,0.89943268]
[1755896615197,0.08348085,117090.0,117080.0,0.89943268]
[1755896615393,0.05084085,117090.0,117080.0,0.4791]
[1755896615586,0.05084085,117090.0,117080.0,0.88063169]
[1755896616396,0.10618085,117090.0,117080.0,0.93059774]
[1755896616594,0.13882085,117090.0,117080.0,0.93059774]
[1755896618199,0.05336085,117090.0,117080.0,0.93059774]
[1755896618402,0.05084085,117090.0,117080.0,0.4791]
[1755896618595,0.13882085,117090.0,117080.0,0.93059774]
[1755896620895,0.59031859,117090.0,117080.0,0.45549]
[1755896621099,0.59031859,117090.0,117080.0,0.56979774]
[1755896621296,0.84031859,117090.0,117080.0,0.1183]
[1755896621491,0.38882085,117090.0,117080.0,0.56979774]
[1755896621697,0.84031859,117090.0,117080.0,0.56979774]
[1755896622298,0.38882085,117090.0,117080.0,0.1183]
[1755896622497,0.38882085,117090.0,117080.0,0.05579]
[1755896622899,0.38882085,117090.0,117080.0,0.10382]
[1755896623100,0.38882085,117090.0,117080.0,0.11876]
[1755896623603,0.38882085,117090.0,117080.0,0.47956]
[1755896624708,0.38882085,117090.0,117080.0,0.11876]
[1755896626007,0.35618085,117090.0,117080.0,0.88100146]
[1755896626207,0.38882085,117090.0,117080.0,0.88100146]
[1755896628011,0.38882085,117090.0,117080.0,0.52020146]
[1755896628700,0.38882085,117090.0,117080.0,0.11876]
[1755896628900,0.38882085,117090.0,117080.0,0.52020146]
[1755896630109,0.38882085,117090.0,117080.0,0.11876]
[1755896630905,0.38882085,117090.0,117080.0,0.52020146]
[1755896631108,0.38882085,117090.0,117080.0,0.88100146]
[1755896631410,0.38882085,117090.0,117080.0,0.47956]
[1755896631610,0.38882085,117090.0,117080.0,0.88100146]
[1755896634105,0.38882085,117090.0,117080.0,0.47956]
[1755896634306,0.38882085,117090.0,117080.0,0.88100146]
[1755896634903,0.38882085,117090.0,117080.0,0.47956]
[1755896635103,0.38882085,117090.0,117080.0,0.88100146]
[1755896636008,0.38882085,117090.0,117080.0,0.47956]
[1755896636214,0.38882085,117090.0,117080.0,0.88100146]
[1755896636710,0.38882085,117090.0,117080.0,0.47956]
[1755896636904,0.38882085,117090.0,117080.0,0.88100146]
[1755896637106,0.38882085,117090.0,117080.0,0.47956]
[1755896637306,0.38882085,117090.0,117080.0,0.88100146]
[1755896638108,0.38882085,117090.0,117080.0,0.47956]
[1755896638308,0.38882085,117090.0,117080.0,0.88100146]
[1755896638912,0.38882085,117090.0,117080.0,0.47956]
[1755896639115,0.38882085,117090.0,117080.0,0.88100146]
[1755896640408,0.38882085,117090.0,117080.0,0.47956]
[1755896640617,0.79026231,117090.0,117080.0,0.45595]
[1755896640820,0.79026231,117090.0,117080.0,0.009]
[1755896642315,0.8404689,117090.0,117080.0,0.009]
[1755896642508,0.8404689,117090.0,117080.0,0.11675]
[1755896643111,0.8404689,117090.0,117080.0,0.56839805]
[1755896643617,0.8404689,117090.0,117080.0,0.05695]
[1755896643813,0.8404689,117090.0,117080.0,0.03403]
[1755896645419,0.13882085,117090.0,117080.0,0.56839805]
[1755896645616,0.5904689,117090.0,117080.0,0.56839805]
[1755896646214,0.5904689,117090.0,117080.0,0.11675]
[1755896646411,0.13882085,117090.0,117080.0,0.11675]
[1755896646809,1.65291695,117090.0,117070.0,0.38015048]
[1755896647009,1.42481805,117080.0,117060.0,0.84863805]
[1755896647217,0.12037,117070.0,117060.0,0.93021594]
[1755896647410,0.13843085,117070.0,117060.0,0.94924008]
[1755896647610,0.5900789,117070.0,117060.0,0.94924008]
[1755896648220,0.5900789,117070.0,117060.0,0.95424008]
[1755896648418,0.5900789,117070.0,117060.0,0.50259203]
[1755896648720,0.5900789,117070.0,117060.0,0.94924008]
[1755896648911,0.5900789,117070.0,117060.0,0.95424008]
[1755896649107,0.5860789,117070.0,117060.0,0.95424008]
[1755896649914,0.59553155,117070.0,117060.0,0.95924008]
[1755896650218,0.1438835,117070.0,117060.0,0.94922219]
[1755896650410,0.1438835,117070.0,117060.0,0.49757414]
[1755896652121,0.42236158,117110.0,117060.0,1.14910845]
[1755896652320,0.06716,117110.0,117100.0,0.7603]
[1755896652514,0.08285,117110.0,117100.0,0.77965191]
[1755896652917,0.97345,117110.0,117100.0,0.80227191]
[1755896653519,0.93867,117110.0,117100.0,1.20380622]
[1755896653715,0.97445,117110.0,117100.0,0.80227191]
[1755896654113,0.98834,117110.0,117100.0,0.80227191]
[1755896654316,1.05694558,117110.0,117100.0,0.80227191]
[1755896655120,1.48210989,117110.0,117100.0,0.80201191]
[1755896655325,1.33057558,117110.0,117100.0,0.24009191]
[1755896655518,1.33057558,117110.0,117100.0,0.14975191]
[1755896655724,1.33057558,117110.0,117100.0,0.20593191]
[1755896655915,1.73210989,117110.0,117100.0,0.23844191]
[1755896656315,1.73210989,117110.0,117100.0,0.20518191]
[1755896656527,1.33057558,117110.0,117100.0,0.20518191]
[1755896656727,1.33057558,117110.0,117100.0,0.23844191]
[1755896656928,1.33057558,117110.0,117100.0,0.25348191]
[1755896657133,1.08057558,117110.0,117100.0,0.26715191]
[1755896657429,1.44732989,117110.0,117100.0,0.62795191]
[1755896657621,1.44732989,117110.0,117100.0,0.59469191]
[1755896657828,1.04579558,117110.0,117100.0,0.58102191]
[1755896658235,1.04579558,117110.0,117100.0,0.61428191]
[1755896658426,1.44732989,117110.0,117100.0,0.62795191]
[1755896658615,1.04579558,117110.0,117100.0,0.51055191]
[1755896658821,1.69732989,117110.0,117100.0,0.51055191]
[1755896659022,3.45716989,117110.0,117100.0,0.49136]
[1755896659227,3.45716989,117110.0,117100.0,0.13056]
[1755896659422,0.0626,117100.0,117090.0,0.3608]
[1755896659723,0.0626,117090.0,117080.0,0.3608]
[1755896660029,0.0626,117090.0,117080.0,0.38332]
[1755896660327,0.71413431,117090.0,117080.0,0.3608]
[1755896661132,0.3126,117090.0,117080.0,0.41698]
[1755896661329,0.71413431,117090.0,117080.0,0.44949]
[1755896661532,0.71313431,117090.0,117080.0,0.44949]
[1755896661830,0.3106,117090.0,117080.0,0.4782]
[1755896662232,0.0606,117090.0,117080.0,0.4782]
[1755896662432,0.04897,117090.0,117080.0,0.4792]
[1755896662829,0.45050431,117090.0,117080.0,0.4792]
[1755896663127,0.45150431,117090.0,117080.0,0.4792]
[1755896663329,0.04997,117090.0,117080.0,0.44594]
[1755896663534,0.45150431,117090.0,117080.0,0.49794267]
[1755896663826,0.0736,117090.0,117080.0,0.49794267]
[1755896664021,0.04997,117090.0,117080.0,0.49794267]
[1755896664222,0.47010874,117090.0,117080.0,0.49794267]
[1755896664617,0.06857443,117090.0,117080.0,0.49794267]
[1755896664830,0.49373874,117090.0,117080.0,0.49794267]
[1755896665030,0.09220443,117090.0,117080.0,0.49794267]
[1755896665226,0.49373874,117090.0,117080.0,0.49794267]
[1755896665432,0.09220443,117090.0,117080.0,0.49794267]
[1755896666129,0.49373874,117090.0,117080.0,0.49794267]
[1755896666331,0.09220443,117090.0,117080.0,0.49794267]
[1755896666728,0.49373874,117090.0,117080.0,0.49794267]
[1755896666929,0.49373874,117090.0,117080.0,0.43227]
[1755896667131,0.34220443,117090.0,117080.0,0.40724]
[1755896667431,1.14527305,117090.0,117080.0,0.001]
[1755896667830,0.01465,117080.0,117060.0,0.40895]
[1755896668135,1.43594431,117070.0,117060.0,0.3608]
[1755896668442,1.05301443,117070.0,117060.0,0.38305]
[1755896668733,1.45454874,117070.0,117060.0,0.48676]
[1755896669132,1.05301443,117070.0,117060.0,0.48676]
[1755896669327,1.45454874,117070.0,117060.0,0.48676]
[1755896669731,1.45854874,117070.0,117060.0,0.48676]
[1755896669926,1.46704932,117070.0,117060.0,0.48776]
[1755896670343,1.06551501,117070.0,117060.0,0.48776]
[1755896670643,1.46704932,117070.0,117060.0,0.48776]
[1755896671343,1.06551501,117070.0,117060.0,0.48676]
[1755896671638,1.06951501,117070.0,117060.0,0.48676]
[1755896671840,1.47104932,117070.0,117060.0,0.48676]
[1755896672535,1.06951501,117070.0,117060.0,0.48676]
[1755896672939,1.47104932,117070.0,117060.0,0.48676]
[1755896673638,1.06951501,117070.0,117060.0,0.48676]
[1755896673840,1.47104932,117070.0,117060.0,0.48676]
[1755896674540,1.47104932,117070.0,117060.0,0.47122]
[1755896674740,1.06951501,117070.0,117060.0,0.47122]
[1755896674936,1.31951501,117070.0,117060.0,0.3608]
[1755896675145,1.72195327,117070.0,117060.0,0.3608]
[1755896675440,1.72195327,117070.0,117060.0,0.40895]
[1755896675740,1.32041896,117070.0,117060.0,0.40895]
[1755896676244,1.32041896,117070.0,117060.0,0.44367]
[1755896676435,1.72195327,117070.0,117060.0,0.44367]
[1755896676634,1.71795327,117070.0,117060.0,0.44367]
[1755896676835,1.72195327,117070.0,117060.0,0.44367]
[1755896677440,1.72095327,117070.0,117060.0,0.44367]
[1755896677634,1.72095327,117070.0,117060.0,0.40895]
[1755896678538,1.72095327,117070.0,117060.0,0.45404]
[1755896678741,1.31641896,117070.0,117060.0,0.45404]
[1755896678937,1.72095327,117070.0,117060.0,0.45404]
[1755896679631,1.72095327,117070.0,117060.0,0.48676]
[1755896680436,1.71695327,117070.0,117060.0,0.48676]
[1755896680735,1.72195327,117070.0,117060.0,0.48676]
[1755896680932,1.32041896,117070.0,117060.0,0.48676]
[1755896681137,1.71695327,117070.0,117060.0,0.48676]
[1755896681337,1.72295327,117070.0,117060.0,0.48676]
[1755896682135,1.32141896,117070.0,117060.0,0.48676]
[1755896682340,1.72295327,117070.0,117060.0,0.48676]
[1755896682541,1.32141896,117070.0,117060.0,0.48676]
[1755896682744,1.72295327,117070.0,117060.0,0.48676]
[1755896684044,1.32141896,117070.0,117060.0,0.48676]
[1755896684646,1.72295327,117070.0,117060.0,0.48676]
[1755896685248,1.32141896,117070.0,117060.0,0.48676]
[1755896685450,1.72295327,117070.0,117060.0,0.48676]
[1755896686142,1.32141896,117070.0,117060.0,0.48676]
[1755896686339,1.72295327,117070.0,117060.0,0.48676]
[1755896687941,1.32141896,117070.0,117060.0,0.48676]
[1755896688250,1.72295327,117070.0,117060.0,0.48676]
[1755896688650,1.32141896,117070.0,117060.0,0.48676]
[1755896688850,1.72295327,117070.0,117060.0,0.48676]
[1755896689039,1.32141896,117070.0,117060.0,0.48676]
[1755896689246,1.72295327,117070.0,117060.0,0.48676]
[1755896690344,1.32141896,117070.0,117060.0,0.48676]
[1755896690549,1.72295327,117070.0,117060.0,0.48676]
[1755896694654,1.32141896,117070.0,117060.0,0.48676]
[1755896694957,1.72295327,117070.0,117060.0,0.48676]
[1755896695748,1.72295327,117070.0,117060.0,0.47122]
[1755896695952,1.72295327,117070.0,117060.0,0.4365]
[1755896696455,1.78433546,117070.0,117060.0,0.4365]
[1755896696754,1.78433546,117070.0,117060.0,0.47122]
[1755896696946,1.38280115,117070.0,117060.0,0.47122]
[1755896697147,1.78433546,117070.0,117060.0,0.47122]
[1755896697346,1.72295327,117070.0,117060.0,0.47122]
[1755896699655,1.72295327,117070.0,117060.0,0.41932]
[1755896699957,1.47295327,117070.0,117060.0,0.3608]
[1755896700145,1.78450987,117070.0,117060.0,0.3608]
[1755896700350,1.78450987,117070.0,117050.0,0.38662]
[1755896700351,0.06588,117060.0,117050.0,0.38221]
[1755896700546,0.48692269,117060.0,117050.0,0.3608]
[1755896700758,0.54848115,117060.0,117050.0,0.38221]
[1755896700952,0.54848115,117060.0,117050.0,0.48357]
[1755896701257,0.48692269,117060.0,117050.0,0.43595]
[1755896701452,0.48692269,117060.0,117050.0,0.48357]
[1755896701653,0.54845256,117060.0,117050.0,0.48357]
[1755896701852,0.52913256,117060.0,117050.0,0.48357]
[1755896702050,0.46960269,117060.0,117050.0,0.48357]
[1755896702250,0.02650838,117060.0,117050.0,1.15417756]
[1755896702544,0.96562058,117070.0,117060.0,0.12277]
[1755896702744,0.01833058,117070.0,117060.0,0.48357]
[1755896702955,0.09896058,117070.0,117060.0,0.48357]
[1755896703154,0.52481489,117070.0,117060.0,0.45169]
[1755896703347,0.52481489,117070.0,117060.0,0.43595]
[1755896703548,0.18481045,117070.0,117060.0,0.43595]
[1755896703747,0.12328058,117070.0,117060.0,0.48357]
[1755896704055,0.53081489,117070.0,117060.0,0.48357]
[1755896704254,0.12928058,117070.0,117060.0,0.48357]
[1755896704456,0.53081489,117070.0,117060.0,0.48357]
[1755896705158,0.13028058,117070.0,117060.0,0.48357]
[1755896705660,0.53181489,117070.0,117060.0,0.48357]
[1755896706054,0.52981489,117070.0,117060.0,0.48357]
[1755896706656,0.53081489,117070.0,117060.0,0.48457]
[1755896707158,0.12928058,117070.0,117060.0,0.48457]
[1755896707359,0.53081489,117070.0,117060.0,0.48457]
[1755896708060,0.12928058,117070.0,117060.0,0.48457]
[1755896708563,0.53081489,117070.0,117060.0,0.48457]
[1755896708756,0.12928058,117070.0,117060.0,0.48457]
[1755896709164,0.53081489,117070.0,117060.0,0.48457]
[1755896709767,0.12928058,117070.0,117060.0,0.48457]
[1755896710065,0.53081489,117070.0,117060.0,0.48457]
[1755896710265,0.12928058,117070.0,117060.0,0.48457]
[1755896710465,0.53081489,117070.0,117060.0,0.48457]
[1755896711062,0.12928058,117070.0,117060.0,0.48457]
[1755896711462,0.53081489,117070.0,117060.0,0.48457]
[1755896711966,0.04135,117060.0,117040.0,0.07344]
[1755896712165,1.90435072,117050.0,117040.0,0.05374]
[1755896712366,1.90435072,117050.0,117030.0,0.04245]
[1755896712367,2.66668503,117050.0,117030.0,0.04245]
[1755896712562,1.27864862,117040.0,117030.0,0.07604]
[1755896712758,1.27864862,117040.0,117030.0,0.04812]
[1755896713164,1.27864862,117040.0,117030.0,0.02671]
[1755896713657,1.27864862,117040.0,117030.0,0.04812]
[1755896713862,1.27864862,117040.0,117030.0,0.0587]
[1755896714062,0.47758,117040.0,117030.0,0.12466]
[1755896714462,0.89874793,117040.0,117030.0,0.12466]
[1755896714664,0.51362793,117040.0,117030.0,0.12466]
[1755896714862,0.51362793,117040.0,117030.0,0.12566]
[1755896715067,0.48711793,117040.0,117030.0,0.12566]
[1755896715266,0.09520362,117040.0,117030.0,0.12566]
[1755896715468,0.51362793,117040.0,117030.0,0.12566]
[1755896715669,0.11209362,117040.0,117030.0,0.12566]
[1755896715859,0.48711793,117040.0,117030.0,0.12566]
[1755896716058,0.51362793,117040.0,117030.0,0.12566]
[1755896716675,0.03146362,117040.0,117030.0,0.12566]
[1755896716870,0.02163362,117040.0,117030.0,0.73646]
[1755896721379,0.08833217,117040.0,117030.0,0.73646]
[1755896721577,0.02163362,117040.0,117030.0,0.73646]
[1755896722367,0.43299793,117040.0,117030.0,0.73646]
[1755896722980,0.03146362,117040.0,117030.0,0.73646]
[1755896723177,0.43299793,117040.0,117030.0,0.73646]
[1755896723576,0.03146362,117040.0,117030.0,0.73646]
[1755896723875,0.43299793,117040.0,117030.0,0.73646]
[1755896724084,0.02163362,117040.0,117030.0,1.13799431]
[1755896724469,0.02163362,117040.0,117030.0,1.13710431]
[1755896724673,0.02163362,117040.0,117030.0,0.73557]
[1755896725877,0.08958307,117040.0,117030.0,0.73557]
[1755896728075,0.08958307,117040.0,117030.0,1.13710431]
[1755896728580,0.08958307,117040.0,117030.0,0.73557]
[1755896729974,0.08958307,117040.0,117030.0,0.48557]
[1755896731680,0.49111738,117040.0,117030.0,0.48557]
[1755896733489,0.08958307,117040.0,117030.0,0.48557]
[1755896735779,0.49111738,117040.0,117030.0,0.48557]
[1755896735978,0.08958307,117040.0,117030.0,0.48557]
[1755896737182,0.11105307,117040.0,117030.0,0.48557]
[1755896737390,0.08958307,117040.0,117030.0,0.48557]
[1755896738586,0.50125738,117040.0,117030.0,0.48557]
[1755896738787,0.09972307,117040.0,117030.0,0.48557]
[1755896742889,0.12119307,117040.0,117030.0,0.48557]
[1755896743091,0.09972307,117040.0,117030.0,0.48557]
[1755896744187,0.12119307,117040.0,117030.0,0.48557]
[1755896744397,0.09972307,117040.0,117030.0,0.48557]
[1755896746694,0.14770307,117040.0,117030.0,0.48557]
[1755896746894,0.52272738,117040.0,117030.0,0.48557]
[1755896747093,0.09972307,117040.0,117030.0,0.48557]
[1755896747695,0.12119307,117040.0,117030.0,0.48557]
[1755896747896,0.09972307,117040.0,117030.0,0.48557]
[1755896750002,0.15513307,117040.0,117030.0,0.48557]
[1755896750503,0.18164307,117040.0,117030.0,0.48557]
[1755896750895,0.58317738,117040.0,117030.0,0.48557]
[1755896751096,0.15513307,117040.0,117030.0,0.48557]